Cogmind - Beta 13 @@@ ROGUE MODE // 2024.07.14 @ 16:19:22 Player: N.W.L Result: Destroyed by 8R-AWN with 8R-AWN's Boregun Performance ------------- Evolutions (0) 0 Regions Visited (3) 600 Robots Destroyed (29) 145 Value Destroyed (417) 417 Prototype IDs (34) 680 Alien Tech Used (0) 0 Bonus (355) 355 TOTAL SCORE: 2197 Bonus ------- Follower Combat Kills 74 Aligned with FarCom 300 Friendly Fire -19 Cogmind --------- Core Integrity 0/250 Matter 217/300 Energy 87/100 System Corruption 1% Temperature Cool (0) Movement Core (100) Ox1 Location -10/Exiles Parts ------- > --- POWER (1) -------- (None) > --- PROPULSION (2) --- (None) > --- UTILITY (2) ------ (None) > --- WEAPON (2) ------- Flail Flail > --- INVENTORY (5) ---- Improved Ion Engine Medium Storage Unit High-capacity Matter Pod (200) Beam Rifle Grenade Launcher Peak State ------------ > --- POWER ------------ Improved Ion Engine > --- PROPULSION ------- Light Treads Light Treads > --- UTILITY ---------- Heat Sink High-capacity Storage Unit > --- WEAPON ----------- Beam Rifle Beam Rifle > --- INVENTORY -------- Improved Ion Engine Light Treads Heat Sink Medium Storage Unit High-capacity Storage Unit High-capacity Matter Pod Beam Rifle Beam Rifle Light Assault Rifle Light Assault Rifle Light Assault Rifle Grenade Launcher Datajack Flail Flail [Rating: 12] Favorites ----------- Power Improved Ion Engine Engine Improved Ion Engine Propulsion Light Treads Treads Light Treads Utility Heat Sink Device Heat Sink Storage High-capacity Storage Unit Weapon Beam Rifle Energy Gun Beam Rifle Ballistic Gun Light Assault Rifle Launcher Grenade Launcher Impact Weapon Flail Special Melee Weapon Datajack Build | -11 -10 -10 -10 ------- Run | Yrd Mat Min Exi Slots Evolved . | . . . . Power . | . . . . Propulsion . | . . . . Utility . | . . . . Weapon . | . . . . Parts Attached 27 | 2 12 6 7 Power 1 | . 1 . . Engine 1 | . 1 . . Core . | . . . . Reactor . | . . . . Propulsion 3 | 2 . . 1 Treads 3 | 2 . . 1 Leg . | . . . . Wheel . | . . . . Hover . | . . . . Flight . | . . . . Utility 4 | . 4 . . Device 2 | . 2 . . Storage 2 | . 2 . . Processor . | . . . . Hackware . | . . . . Protection . | . . . . Artifact . | . . . . Weapon 19 | . 7 6 6 Energy Gun 5 | . 4 . 1 Energy Cannon . | . . . . Ballistic Gun 5 | . 1 3 1 Ballistic Cannon . | . . . . Launcher 3 | . . 2 1 Special Weapon . | . . . . Impact Weapon 5 | . 2 1 2 Slashing Weapon . | . . . . Piercing Weapon . | . . . . Special Melee Weapon 1 | . . . 1 Unidentified Prototypes . | . . . . Parts Lost 7 | . . . 7 Power 1 | . . . 1 Propulsion 3 | . . . 3 Utility 1 | . . . 1 Weapon 2 | . . . 2 Highest Loss Streak 7 | . . . 7 To Critical Strikes . | . . . . Average Slot Usage (%) 95 | . 92 100 90 Engine 12 | . 11 14 11 Treads 27 | . 28 28 24 Device 12 | . 11 14 11 Storage 13 | . 12 14 13 Energy Gun 12 | . 21 7 . Ballistic Gun 11 | . 3 18 15 Special Melee Weapon 1 | . . . 9 Naked Turns . | . . . . Heaviest Build 54 | . 54 54 50 Greatest Support 40 | 3 40 40 40 Greatest Overweight (x) 14 | . 1 1 14 Average Overweight (x) . | . . 1 1 Largest Inventory Capacity 20 | 5 20 20 20 Average Capacity 18 | 5 15 20 19 Most Carried 20 | . 16 20 20 Average Carried 15 | . 10 19 19 Final Capacity 20 | 5 20 20 5 Final Carried 20 | . 16 20 5 Class Distribution -------------------- 100% | Mutant Dominant Class ---------------- Mutant | -10/Materials Mutant | -10/Mines Mutant | -10/Exiles Resources | -11 -10 -10 -10 ----------- Run | Yrd Mat Min Exi Matter Collected 713 | 54 496 149 14 Remotely . | . . . . Salvage Created 726 | . 637 61 28 Parts 52 | . 39 13 . Haulers Intercepted 2 | . 2 . . Recyclers Shooed 1 | . 1 . . Parts Field Recycled . | . . . . Retrieved Matter . | . . . . Parts Self-Destructed . | . . . . Prevented . | . . . . Kills | -11 -10 -10 -10 ------- Run | Yrd Mat Min Exi Combat Hostiles Destroyed 22 | . 9 7 6 Guns 10 | . 9 1 . AOE 12 | . . 6 6 Classes Destroyed 9 | . 8 . 1 Worker 5 | . 3 2 . Builder 2 | . 2 . . Hauler 2 | . 2 . . Recycler 1 | . 1 . . Operator 1 | . 1 . . Watcher 2 | . 2 . . Swarmer 10 | . 3 7 . Grunt 6 | . 6 . . Assembled 6 | . . . 6 Best Kill Streak 6 | . 5 5 6 Combat Bots Only 6 | . 3 5 6 Max Kills in Single Turn 3 | . 1 2 3 Gunslinging . | . . . . Exploded 3 | . . 2 3 Melee . | . . . . Uniques/NPCs Destroyed . | . . . . Combat | -11 -10 -10 -10 -------- Run | Yrd Mat Min Exi Hostile Shots Fired 84 | . 50 8 26 Missed 26 | . 14 6 6 Damage Taken 1008 | . 342 45 621 Core 262 | . 57 . 205 Absorbed by Shields . | . . . . Core Remaining (%) 100 | 100 . . . Volleys Fired 71 | . 57 10 4 Largest 2 | . 2 2 1 Hottest 112 | . 112 40 30 Shots Fired 134 | . 114 15 5 Gun 125 | . 114 10 1 Cannon . | . . . . Launcher 9 | . . 5 4 Special . | . . . . Kinetic 27 | . 16 10 1 Thermal 98 | . 98 . . Explosive 9 | . . 5 4 Electromagnetic . | . . . . Robot Hit Streak 8 | . 8 4 6 Robot Miss Streak 3 | . 3 2 . Penetration Max . | . . . . Secondary Targets 1 | . 1 . . Max Gunslinging Chain 1 | . 1 . . Shots Hit Robots 80 | . 65 6 9 Core Hits 49 | . 26 10 13 Critical Kills 1 | . . 1 . Critical Parts Destroyed 1 | . . . 1 Critical Strikes 6 | . 4 1 1 Burn 4 | . 4 . . Destroy 1 | . . 1 . Smash 1 | . . . 1 Melee Attacks 17 | . 8 1 8 Impact 14 | . 8 1 5 Slashing . | . . . . Piercing . | . . . . Sneak Attacks 4 | . 1 . 3 Combat Hostiles . | . . . . Follow-up Attacks . | . . . . Damage Inflicted 1915 | . 1000 499 416 Guns 955 | . 896 49 10 Cannons . | . . . . Explosions 776 | . . 450 326 Melee 184 | . 104 . 80 Ramming . | . . . . Kinetic 144 | . 85 49 10 Thermal 955 | . 811 144 . Explosive 632 | . . 306 326 Electromagnetic . | . . . . Impact 184 | . 104 . 80 Slashing . | . . . . Piercing . | . . . . Highest Corruption 1 | . 1 1 1 Average Corruption 1 | . 1 1 1 Corruption Purged . | . . . . Corruption Blocked . | . . . . Effects 24 | . 6 11 7 Message Errors 8 | . 3 3 2 Matter Fused 5 | . . 3 2 Heat Flow Errors 3 | . 2 1 . Energy Discharges 2 | . 1 1 . Data Loss (minor) 3 | . . 2 1 Data Loss (major) 2 | . . 1 1 Misfires 1 | . . . 1 Overload Shots . | . . . . Overflow Damage 152 | . 64 41 47 Projectiles . | . . . . Explosions 52 | . . 41 11 Melee 100 | . 64 . 36 Knockbacks 1 | . . . 1 Impact 1 | . . . 1 Kinetic . | . . . . Secondary . | . . . . Self-Inflicted Damage 67 | . . 27 40 Shots 2 | . . 1 1 Rammed . | . . . . Targets Rammed . | . . . . Kicked . | . . . . Crushed . | . . . . Highest Temperature 300 | . 300 196 . Average Temperature 69 | . 68 111 . Received Heat Transfer 114 | . 114 . . Siege Activations . | . . . . Robots Corrupted . | . . . . Combat Hostiles . | . . . . Parts Fried 3 | . 3 . . Impact Corruptions 2 | . 1 . 1 Robots Melted . | . . . . Combat Hostiles . | . . . . Parts Melted 8 | . 7 1 . Heat Transferred 2518 | . 2368 150 . Parts Sabotaged . | . . . . Parts Stolen . | . . . . Parts Stripped . | . . . . Power Chain Reactions . | . . . . Alert | -11 -10 -10 -10 ------- Run | Yrd Mat Min Exi Peak Influence 357 | . 303 357 . Initial 87 | . . 87 . Average 108 | . 147 73 . Maximum Alert Level 1 | . 1 1 . Low Security (%) 85 | 100 70 98 . Level 1 14 | . 29 1 . Level 2 . | . . . . Level 3 . | . . . . Level 4 . | . . . . Level 5 . | . . . . High Security . | . . . . Max Security . | . . . . Squads Dispatched 5 | . 5 . . Investigation 4 | . 4 . . Extermination . | . . . . Reinforcement 1 | . 1 . . Assault . | . . . . Garrison . | . . . . Intercept . | . . . . Searches Triggered . | . . . . Construction Impeded . | . . . . Haulers Reinforced . | . . . . Active Scanning Responses . | . . . . Cargo Convoy Interrupts . | . . . . Stealth | -11 -10 -10 -10 --------- Run | Yrd Mat Min Exi Distress Signals . | . . . . Communications Jammed . | . . . . Distress Signals . | . . . . Times Spotted 44 | . 29 7 8 Peak Tracking Total 11 | . 8 3 11 Tactical Retreats 11 | . 9 . 2 Traps | -11 -10 -10 -10 ------- Run | Yrd Mat Min Exi Traps Triggered 2 | . 2 . . Indirectly . | . . . . Trap Hack Attempts . | . . . . Triggered . | . . . . Disarmed . | . . . . Reprogrammed . | . . . . Reused . | . . . . Traps Extracted . | . . . . Installed . | . . . . Triggered . | . . . . Most Traps Carried 4 | . . 4 4 Machines | -11 -10 -10 -10 ---------- Run | Yrd Mat Min Exi Machines Disabled 6 | . 2 2 2 Max in Single Turn 2 | . 1 2 2 Machines Repaired . | . . . . Machines Dismantled . | . . . . Machines Sabotaged . | . . . . Overloaded Fab Kills . | . . . . Hacking | -11 -10 -10 -10 --------- Run | Yrd Mat Min Exi Machines Accessed 8 | . 6 . 2 Terminals 5 | . 5 . . Fabricators . | . . . . Repair Stations . | . . . . Recycling Units 1 | . 1 . . Scanalyzers . | . . . . Garrison Access . | . . . . Total Hacks 28 | . 23 . 5 Successful 12 | . 7 . 5 Failed 16 | . 16 . . Catastrophic 6 | . 6 . . Database Lockouts . | . . . . Manual 19 | . 18 . 1 Terminals 20 | . 20 . . Fabricators . | . . . . Repair Stations . | . . . . Recycling Units 3 | . 3 . . Scanalyzers . | . . . . Garrison Access . | . . . . Terminal Hacks 9 | . 4 . 5 Record 5 | . 1 . 4 Robot Analysis 2 | . 2 . . Transport Status 1 | . 1 . . Derelict Proto ID Bank 1 | . . . 1 Fabricator Hacks . | . . . . Repair Station Hacks . | . . . . Recycling Unit Hacks 1 | . 1 . . Retrieve Components 1 | . 1 . . Scanalyzer . | . . . . Garrison Access Hacks . | . . . . Unauthorized Hacks 2 | . 2 . . Terminals 1 | . 1 . . Botnet 1 | . 1 . . Fabricators . | . . . . Repair Stations . | . . . . Recycling Units 1 | . 1 . . Tunnel 1 | . 1 . . Scanalyzers . | . . . . Garrison Access . | . . . . Data Cores Recovered . | . . . . Used . | . . . . Hacking Detections 6 | . 6 . . Full Trace Events 4 | . 4 . . Feedback Events 1 | . 1 . . Corruption 1 | . 1 . . Feedback Blocked . | . . . . Robot Schematics Acquired . | . . . . Robots Built . | . . . . Authchips . | . . . . Time . | . . . . Total Robot Build Rating . | . . . . Part Schematics Acquired . | . . . . Parts Built . | . . . . Authchips . | . . . . Time . | . . . . Total Part Build Rating . | . . . . Parts Repaired . | . . . . Time . | . . . . Parts Recycled . | . . . . Recycled Matter . | . . . . Retrieved Matter . | . . . . Retrieved Components . | . . . . Parts Scanalyzed . | . . . . Part Schematics Acquired . | . . . . Parts Damaged . | . . . . Bothacking | -11 -10 -10 -10 ------------ Run | Yrd Mat Min Exi Used RIF Installer . | . . . . Robots Hacked 3 | . . . 3 Non-combat 2 | . . . 2 Combat 1 | . . . 1 Robot Hacks Applied 3 | . . . 3 parse_system 3 | . . . 3 Relay Couplers Released . | . . . . Fabnet Peak Effective % . | . . . . Robots Rewired . | . . . . Allies Hacked . | . . . . Hacks Repelled . | . . . . Allies | -11 -10 -10 -10 -------- Run | Yrd Mat Min Exi Total Allies 5 | . . 5 . Largest Group 3 | . . 3 2 Highest-Rated Group 48 | . . 48 45 Highest-Rated Ally 31 | . . 31 28 Total Orders . | . . . . Ally Attacks 28 | . . 28 . Total Damage 229 | . . 229 . Kills 4 | . . 4 . Allies Corrupted . | . . . . Allies Melted . | . . . . Intel | -11 -10 -10 -10 ------- Run | Yrd Mat Min Exi Robot Analysis Total 2 | . 2 . . Derelict Logs Recovered 1 | . . 1 . Drone Launches . | . . . . Drone Recoveries . | . . . . Exploration | -11 -10 -10 -10 ------------- Run | Yrd Mat Min Exi Turns Passed 3727 | 12 1574 1670 471 Spaces Moved 1583 | 18 736 657 172 Core 143 | 18 119 . 6 Treads 1440 | . 617 657 166 Legs . | . . . . Wheels . | . . . . Hover . | . . . . Flight . | . . . . Fastest Speed 50 | 50 50 240 100 Average Speed 211 | 50 181 240 247 Slowest Speed 750 | 50 240 240 750 Overloaded Moves . | . . . . Propulsion Burnouts . | . . . . Robots Hopped . | . . . . Cave-ins Triggered . | . . . . Exploration Rate (%) 55 | 3 73 96 49 Regions Visited 3 Branch Regions 2 Pre-discovered Areas 3 | . 1 1 1 Known Exits Taken . | . . . . Unknown Exits Taken 3 | 1 1 1 . Scrap Searched . | . . . . Spaces Dug 15 | . 5 6 4 Terrain Destroyed 48 | . 5 34 9 Melee 6 | . 5 1 . Projectile . | . . . . AOE 42 | . . 33 9 Terrain Rammed . | . . . . Walls Destroyed . | . . . . Machines Disabled . | . . . . Actions | -11 -10 -10 -10 --------- Run | Yrd Mat Min Exi Total 1805 | 19 845 734 207 Wait 83 | . 15 55 13 Move 1580 | 17 735 656 172 Hop . | . . . . Pick Up 23 | . 18 5 . Fast Attach 4 | 2 2 . . Attach 7 | . 3 . 4 Detach 1 | . . . 1 Swap 16 | . 7 6 3 Drop 3 | . . 1 2 Fire 71 | . 57 10 4 Melee 17 | . 8 1 8 Ram . | . . . . Kick . | . . . . Crush . | . . . . Escape Stasis . | . . . . Rewire . | . . . . Trap . | . . . . Miscellaneous . | . . . . Route ------- -11/Scrapyard -10/Materials (discovered 3 exits: [*Mat x2] / [*Min]) -10/Mines (discovered 3 exits: [*Mat x2] / *Exi) -10/Exiles History --------- Turn | Location | Event 3 | -11/Scrapyard | Discovered new exit (range 15) 13 | -11/Scrapyard | Entered Materials 66 | -10/Materials | Met 8R-AWN 238 | -10/Materials | Discovered new exit (range 6) 318 | -10/Materials | Build established: Mutant 387 | -10/Materials | Discovered new exit (range 14) 869 | -10/Materials | Discovered new exit (range 12) 1587 | -10/Materials | Entered Mines 1590 | -10/Mines | Followed 8R-AWN into the Mines 1607 | -10/Mines | Assisted by bots powering up and referring to "LRC-V3" 1652 | -10/Mines | Discovered new exit (range 5) 1719 | -10/Mines | Found a hidden stash of uninstalled traps 1975 | -10/Mines | Discovered new exit (range 10) 2008 | -10/Mines | Discovered new exit (range 13) 2368 | -10/Mines | Received a Rocket Launcher from a helpful Derelict 2837 | -10/Mines | Lost 3 allies 3257 | -10/Mines | Entered Exiles 3257 | -10/Exiles | Accompanied by 2 allies 3287 | -10/Exiles | Led the pair of lost Derelicts to a safe place 3317 | -10/Exiles | Welcomed by 8R-AWN 3371 | -10/Exiles | Met EX-HEX 3440 | -10/Exiles | Met EX-BIN 3467 | -10/Exiles | Aligned with FarCom system 3470 | -10/Exiles | Given EX-Vault access code 3525 | -10/Exiles | Opened EX-Vault 3578 | -10/Exiles | Warned to stay clear of 0b10 Research branches 3645 | -10/Exiles | Met EX-DEC 3649 | -10/Exiles | Attacked by the Exiles 3658 | -10/Exiles | Learned location of Zion (-6) 3675 | -10/Exiles | Core integrity fell below 50% 3699 | -10/Exiles | Lost 7 parts (1p3n1u2w) 3723 | -10/Exiles | Core integrity fell below 20% 3728 | -10/Exiles | Destroyed by 8R-AWN with 8R-AWN's Boregun Last Messages --------------- 03713_ HV Slug penetrates Wall. 03717_ Dropped Hcp. Storage Unit. 03718_ Penetrated by HV Slug. 03718_ HV Slug penetrates Wall. 03718_ Penetrated by HV Slug. 03718_ HV Slug penetrates Earth. 03720_ Penetrated by HV Slug. 03720_ HV Slug penetrates Earth. 03720_ Penetrated by HV Slug. 03720_ HV Slug penetrates Earth. 03721_ 8R-AWN knocked back. 03722_ Penetrated by HV Slug. 03722_ HV Slug penetrates Earth. 03722_ Penetrated by HV Slug. 03722_ HV Slug penetrates Earth. 03724_ Penetrated by HV Slug. 03724_ HV Slug penetrates Earth. 03724_ Penetrated by HV Slug. 03724_ HV Slug penetrates Earth. 03728_ Penetrated by HV Slug. Map ----- +----------------------------------------------------+ | ?????????????????????????????????????# ## "" | | ?????????????????????????????????????# X" | | ?????????????????????????????????????# ## "" | | ???????????????????????????????####??# #??"""" | | ??????????????????????????????""""""?# #???### | | ??????????????????????????????"""" ## #?????? | | ?????????????????????????????#""X" #?????? | | ?????????????????????????????#" #?????? | | ?????????????????????????????#" ## #?????? | | ?????????????????????????????#""""""?# #?##### | | ?????????????????????????????##"###??# #?#"""" | | ?????????????????????????????????????# #?#"""" | | ?????????????????????????????????????# #?#"""" | | ????????????????????????????????????## ###"" " | | ????????????????????????????????????#" " | | ????????????????????????????????????#" | | ????????????????????????????????????#" | | ????????????????????????????????????#" | | ?????????????????????########???????#" | | ?????????????????????# """#???????#" | | ?????????????????????#"" """#???????## | | ?????????????????????#"" #????????# | | ?????????????????????#""! #????????#" "X" | | ?????????????????????#""[ "#????????#" """ | | ???????????????#######!&[] "#????????#" """""" | | ?????????????# ;!&[@g"#???????##" ####### | | ???????????????#########!& ##??????##"" #?????? | | ?????????????????????# #%& ##?######"" #?????? | | ????????? """#####X ##""""""" ##????? | | ???????? "" " "" ##???# | | ???????? "" " ##### | | ????????# " | | ?????????## | | ??????????### | | ????????????## | | ?????????????## | | ??????????????##" | | ???????????????#""" """""" | | ???????????????#" ######""" | | ???????????????"" ""##????#####""" | | ???????????????""" """##?????????##""" | | ???????????????"" """##???????????#"""" | | ????????????????" ""#????????????#"" | | ???????????????? ##?????????????""" | | ????????????????" ??????????????? | | ????????????????? ??????????????? | | ??????????????????? ??????????????? | | ????????????????????? ???????????????? | | ???????????????????????? ??????????????????? | | ?????????????????????????? ??????????????????????? | +----------------------------------------------------+ Best States ------------- Heat Dissipation 35 Energy Generation 12 Energy Capacity 265 Matter Stores 300 Matter Capacity 300 Sight Range 16 Terrain Scan Density 10 Evasion (%) 50 Recoil Reduction 2 Item Schematics ----------------- None Robot Schematics ------------------ None Fabricated ------------ Nothing Alien Tech Used ----------------- None Achievements -------------- None Challenges ------------ None Game ------ Seed ShrapnelBombRedistributor Manual? 0 Play Time 00:16:46 Cumulative 196.2 hours Start 2024.07.14 @ 16:02:17 End 2024.07.14 @ 16:19:22 Sessions 1 Manual Loads 0 Difficulty Rogue Special Mode None Game No. 93 Rogue 93 Adventurer 0 Explorer 0 Win Type - Total 4 Types 2/0/2/0/0/0/0/0/0 Lore% 77 Gallery% 84 Achievement% 63 Wizard Run 0 Options --------- Layout 0 ASCII 0 Keyboard 0 Movement Mouse Keybinds 0 Fullscreen 2 Font 14/SmallcapsGlow Map View 72x54 Zoom Use 0% Tactical HUD 1 Map Filters NONE Filters NONE Steam 1 RUN: e437cd7d-b68e-4903-946a-ee63ded43b42